bitfinex/quotes_ETHUSD_20220117
["timestamp","ask_amount","ask_price","bid_price","bid_amount"]
[1642436331025,3.9282,3222.9,3222.2,6.5]
[1642436331226,3.9282,3222.9,3222.3,1.0]
[1642436331424,0.00284212,3222.8,3222.3,1.0]
[1642436331624,0.00284212,3222.8,3222.5,1.34442422]
[1642436331826,0.00227369,3222.7,3222.5,1.34442422]
[1642436332058,0.00227369,3222.7,3222.5,1.64442422]
[1642436332259,3.9282,3222.9,3222.6,7.4]
[1642436332458,3.9282,3222.9,3222.6,1.0809]
[1642436332655,0.00113685,3222.8,3222.6,2.0809]
[1642436332856,3.1,3222.7,3222.6,2.93161]
[1642436333064,3.1,3222.7,3222.6,3.63161]
[1642436333257,3.1,3222.7,3222.2,1.0]
[1642436333458,3.1,3222.7,3222.0,1.14862]
[1642436333657,3.1,3222.7,3222.3,0.00170527]
[1642436333860,3.1,3222.7,3222.1,0.00284212]
[1642436334057,1.12118932,3222.5,3222.3,1.5511]
[1642436334459,1.12118932,3222.5,3222.4,0.00113685]
[1642436334957,1.12118932,3222.5,3221.2,1.07651145]
[1642436334958,1.12118932,3222.5,3222.2,0.77566]
[1642436335357,1.12118932,3222.5,3222.3,0.00170527]
[1642436335998,1.12118932,3222.5,3222.3,1.55282527]
[1642436336498,1.12118932,3222.5,3222.4,0.00113685]
[1642436336702,3.1,3222.7,3222.4,0.00113685]
[1642436336902,3.1,3222.7,3222.5,0.77552]
[1642436337702,4.53905494,3222.7,3222.5,0.77552]
[1642436339106,4.53905494,3222.7,3222.4,0.00113685]
[1642436339563,3.12450474,3222.6,3222.4,0.00113685]
[1642436339957,3.42450474,3222.6,3221.8,0.00454739]
[1642436340158,0.01964952,3222.5,3222.0,0.00341054]
[1642436340458,0.01964952,3222.5,3221.5,0.00625266]
[1642436340666,10.47443724,3222.6,3221.5,0.78207266]
[1642436340864,8.92270474,3222.6,3221.5,0.77582]
[1642436341060,8.92270474,3222.6,3221.6,0.00568423]
[1642436341061,8.80333858,3222.6,3221.6,0.00568423]
[1642436341263,8.73133689,3222.6,3221.6,0.00568423]
[1642436341461,5.7982,3222.6,3221.6,0.00568423]
[1642436341663,2.37080815,3222.1,3221.6,0.00568423]
[1642436342864,3.0281458,3222.0,3221.6,0.00568423]
[1642436343071,3.17431669,3222.0,3221.6,0.00568423]
[1642436343308,4.0011,3221.9,3221.4,0.00682108]
[1642436343510,3.26102354,3221.8,3220.7,0.01080005]
[1642436343710,0.01733406,3221.7,3220.7,0.01080005]
[1642436343908,1.46313042,3220.8,3220.7,0.01080005]
[1642436344110,1.36982504,3220.8,3220.4,0.01250532]
[1642436344511,0.01694159,3220.7,3220.4,0.01250532]
[1642436344716,1.36982504,3220.8,3220.4,0.01250532]
[1642436345611,1.18224914,3220.7,3220.4,0.01250532]
[1642436346213,1.18224914,3220.7,3220.3,0.01307374]
[1642436346415,5.24484914,3220.7,3220.3,0.01307374]
[1642436346615,5.24484914,3220.7,3220.2,0.01364216]
[1642436346616,4.0626,3220.7,3220.2,0.01364216]
[1642436347077,4.0626,3220.7,3220.3,2.32765]
[1642436347470,1.9017191,3222.4,3220.3,2.32765]
[1642436347471,1.4426774,3222.1,3220.5,1.2242924]
[1642436347668,1.23197388,3222.2,3221.7,1.12907135]
[1642436347967,1.23197388,3222.2,3220.9,1.55143]
[1642436347968,9.9953,3222.3,3221.8,0.00454739]
[1642436348167,3.9458,3222.3,3221.8,0.00454739]
[1642436348374,3.9458,3222.3,3221.6,0.37868423]
[1642436348570,3.9458,3222.3,3221.7,0.00511581]
[1642436349071,5.03090881,3222.3,3221.7,0.00511581]
[1642436349270,5.03090881,3222.3,3221.7,0.30511581]
[1642436349471,5.03090881,3222.3,3221.7,0.00511581]
[1642436349671,5.03090881,3222.3,3221.8,0.00454739]
[1642436349873,5.03090881,3222.3,3221.7,0.00511581]
[1642436351511,3.9458,3222.3,3221.7,0.00511581]
[1642436351709,3.9458,3222.3,3221.8,0.373]
[1642436351909,3.9458,3222.3,3221.8,1.1635]
[1642436352109,3.9458,3222.3,3221.9,0.00397896]
[1642436352311,3.9458,3222.3,3221.9,0.37697896]
[1642436352510,3.9458,3222.3,3221.7,0.85205145]
[1642436352710,3.9458,3222.3,3220.2,1.09044458]
[1642436352711,2.87125522,3222.2,3221.3,0.07651145]
[1642436352910,0.00170527,3222.2,3220.9,3.8254]
[1642436353112,0.00170527,3222.2,3221.4,0.00284212]
[1642436353113,0.00113684,3222.1,3221.4,0.00284212]
[1642436353519,2.69058328,3222.0,3221.4,0.00284212]
[1642436353712,5.8067,3221.9,3221.4,0.00284212]
[1642436353915,5.8067,3221.9,3219.8,5.62523879]
[1642436353916,7.1067,3221.9,3220.5,0.00795793]
[1642436354211,7.1067,3221.9,3220.1,0.01023163]
[1642436354413,9.92107956,3221.9,3220.1,0.01023163]
[1642436354658,1.54825305,3220.5,3220.1,0.01023163]
[1642436355459,4.0664,3220.8,3220.1,0.01023163]
[1642436356661,1.30597595,3220.4,3220.1,0.01023163]
[1642436357964,0.01832412,3220.3,3220.1,0.01023163]
[1642436358166,1.60597595,3220.4,3220.1,0.01023163]
[1642436358408,1.30597595,3220.4,3220.1,0.01023163]
[1642436359809,1.60597595,3220.4,3220.1,0.01023163]
[1642436360412,3.0287772,3220.3,3220.1,0.01023163]
[1642436360612,2.9805318,3220.3,3220.1,0.01023163]
[1642436360812,3.39282822,3220.3,3220.1,0.01023163]
[1642436361013,3.31878706,3220.2,3220.1,0.01023163]
[1642436361712,0.3,3220.2,3220.1,0.01023163]
[1642436361913,1.60597595,3220.4,3220.1,0.01023163]
[1642436362350,3.01565963,3220.3,3220.1,0.01023163]
[1642436362550,3.31565963,3220.3,3220.1,0.01023163]
[1642436362752,13.66792545,3220.2,3220.1,0.01023163]
[1642436362951,13.96792545,3220.2,3220.1,0.01023163]
[1642436363155,13.91792545,3220.2,3220.1,0.01023163]
[1642436363356,1.25,3220.2,3220.1,0.01023163]
[1642436363555,0.25,3220.2,3220.1,0.01023163]
[1642436363762,1.30597595,3220.4,3220.1,0.01023163]
[1642436363955,0.3,3220.3,3220.1,0.01023163]
[1642436364156,1.60597595,3220.4,3220.1,0.01023163]
[1642436364355,4.70597595,3220.4,3220.1,0.01023163]
[1642436364556,1.0,3220.3,3220.1,0.01023163]
[1642436364756,4.40597595,3220.4,3220.1,0.01023163]
[1642436365157,5.00597595,3220.4,3220.1,0.01023163]
[1642436365357,5.78246595,3220.4,3220.1,0.01023163]
[1642436365558,1.0,3220.3,3220.1,0.01023163]
[1642436366608,19.073,3220.2,3220.1,0.01023163]
[1642436366808,0.77665,3219.8,3218.3,2.80255302]
[1642436367008,0.77665,3219.8,3218.1,3.64539766]
[1642436367009,4.3105,3219.7,3218.1,0.01229766]
[1642436367215,4.3105,3219.7,3218.4,0.0096632]
[1642436367512,1.52917647,3218.7,3218.4,0.0096632]
[1642436368015,1.52917647,3218.7,3218.2,0.01080004]
[1642436368216,4.059,3218.6,3218.2,0.01080004]
[1642436368414,0.02002223,3218.5,3217.7,0.01364216]
[1642436368611,4.059,3218.6,3217.1,0.01207446]
[1642436368612,4.8581,3218.6,3217.2,0.01648428]
[1642436368812,1.38235902,3217.6,3217.2,0.01648428]
[1642436370256,0.02078276,3217.5,3217.2,0.01648428]
[1642436370656,1.38235902,3217.6,3217.2,0.01648428]
[1642436371058,0.03252898,3217.5,3217.2,0.01648428]
[1642436371859,1.38235902,3217.6,3217.2,0.01648428]
[1642436372460,1.38235902,3217.6,3217.1,0.77685]
[1642436372660,1.38235902,3217.6,3217.2,0.01648428]
[1642436372861,3.8271,3217.5,3217.2,0.01648428]
[1642436373064,3.8271,3217.5,3217.1,1.44690105]
[1642436373317,3.8271,3217.5,3216.7,0.01932639]
[1642436373512,3.8271,3217.5,3217.2,0.01648428]
[1642436373712,3.8271,3217.5,3216.4,0.02103166]
[1642436374112,1.47327744,3217.1,3216.5,1.21827484]
[1642436374515,6.9271,3217.5,3216.6,0.01989482]
[1642436374713,6.9271,3217.5,3216.8,0.77679]
[1642436375113,6.9271,3217.5,3216.9,0.01818955]
[1642436375513,3.1,3217.5,3217.1,0.01266537]
[1642436375717,3.1,3217.5,3217.1,1.56594537]
[1642436376014,3.1,3217.5,3217.2,2.64475395]
[1642436376216,10.2799,3218.7,3217.3,18.7]
[1642436376415,10.2799,3218.7,3217.4,0.76124]
[1642436376615,10.2799,3218.7,3217.8,0.01264289]
[1642436376918,10.2799,3218.7,3217.9,1.93830531]
[1642436377157,10.2799,3218.7,3218.0,2.24999159]
[1642436377158,4.0891,3218.7,3218.0,2.24999159]
[1642436377354,1.51931415,3219.5,3218.0,2.24999159]
[1642436377355,1.51931415,3219.5,3218.1,1.35135]
[1642436377554,3.9035,3219.4,3218.3,0.6210683]
[1642436377756,3.9035,3219.4,3218.5,1.5527]
[1642436377960,3.9035,3219.4,3218.5,2.4842]
[1642436378160,3.9035,3219.4,3218.6,0.00852635]
[1642436378560,1.51715895,3219.3,3218.6,0.78487635]
[1642436378959,1.51715895,3219.3,3218.7,0.00795793]
[1642436379660,1.51715895,3219.3,3218.8,1.54387899]
[1642436379860,1.51715895,3219.3,3218.9,0.77638]
[1642436380060,1.51715895,3219.3,3218.9,0.78320108]
[1642436380260,1.51715895,3219.3,3219.0,0.00625265]
[1642436380661,3.9035,3219.4,3219.0,0.00625265]
[1642436380907,0.02705587,3219.9,3219.0,1.0372641]
[1642436381109,0.02705587,3219.9,3219.1,0.38650375]
[1642436381305,0.02705587,3219.9,3219.3,0.77617]
[1642436381505,0.02705587,3219.9,3219.4,0.673]
[1642436381704,0.02705587,3219.9,3219.6,1.55226]
[1642436381905,0.02705587,3219.9,3219.7,0.373]
[1642436382111,0.02705587,3219.9,3219.7,0.37527369]
[1642436382304,0.02705587,3219.9,3219.8,0.00170527]
[1642436382909,0.02705587,3219.9,3219.7,0.00227369]
[1642436383110,0.02705587,3219.9,3219.5,0.00341054]
[1642436383313,0.03394043,3219.8,3219.5,0.00341054]
[1642436383511,0.03394043,3219.8,3218.8,0.001422]
[1642436383512,0.02705587,3219.9,3219.3,0.00454738]
[1642436383711,1.1272621,3219.7,3218.9,0.00682108]
[1642436384564,3.1,3219.7,3219.0,0.373]
[1642436384763,3.1,3219.7,3219.0,0.44951145]
[1642436384957,3.1,3219.7,3219.1,3.38634781]
[1642436385159,0.02705587,3219.9,3219.6,0.01211807]
[1642436385361,0.02705587,3219.9,3219.7,1.56903262]
[1642436385560,1.24400769,3220.9,3219.8,11.55]
[1642436385759,6.32277794,3221.1,3219.9,0.373]
[1642436385959,0.00511581,3221.0,3219.9,4.72019458]
[1642436386160,0.00511581,3221.0,3219.9,1.67413684]
[1642436386460,0.00454739,3220.9,3220.1,0.77597]
[1642436386863,1.1509761,3220.7,3220.2,1.10319022]
[1642436387264,0.00284212,3220.6,3220.2,1.10319022]
[1642436387663,0.0022737,3220.5,3220.4,0.77584]
[1642436387863,4.1633,3221.2,3220.5,11.4706466]
[1642436388062,0.00511581,3221.0,3220.6,0.373]
[1642436388320,0.00511581,3221.0,3220.6,1.373]
[1642436388511,0.00227369,3220.9,3220.7,1.09256872]
[1642436388713,0.00227369,3220.9,3220.8,7.923]
[1642436388911,4.1633,3221.2,3220.8,0.373]
[1642436389112,0.78807734,3222.4,3220.8,1.673]
[1642436389412,0.00341054,3221.1,3221.0,0.77578]
[1642436389612,0.00341054,3221.1,3221.0,1.07578]
[1642436389815,0.00341054,3221.1,3221.0,2.07578]
[1642436390212,0.00341054,3221.1,3221.0,1.77578]
[1642436390413,0.00341054,3221.1,3221.0,0.77578]
[1642436390613,0.00341054,3221.1,3221.0,1.77578]
[1642436390813,0.00341054,3221.1,3221.0,0.77578]
[1642436391015,0.0381668,3221.0,3220.4,0.03022162]
[1642436391214,0.0381668,3221.0,3220.5,0.373]
[1642436391413,0.00227369,3220.9,3220.6,0.373]
[1642436391612,0.00227369,3220.9,3220.7,0.373]
[1642436391816,0.00170527,3220.8,3220.7,0.373]
[1642436394569,3.10170527,3220.8,3220.7,0.373]
[1642436395674,3.10170527,3220.8,3220.6,1.55175]
[1642436395675,0.00170527,3220.8,3220.6,1.55175]
[1642436395912,0.00170527,3220.8,3220.3,0.77603]
[1642436396112,0.00113684,3220.7,3220.3,0.77603]
[1642436396513,0.00284211,3221.0,3220.3,0.77603]
[1642436396715,1.40475788,3220.6,3220.3,0.77603]
[1642436398315,3.15958488,3220.6,3220.3,0.77603]
[1642436399556,0.0343135,3220.5,3220.0,0.77611]
[1642436399762,0.0343135,3220.5,3219.9,0.00113684]
[1642436399763,1.754827,3220.5,3219.9,0.00113684]
[1642436399961,1.754827,3220.5,3220.1,0.0022737]
[1642436400165,1.754827,3220.5,3219.8,0.00397897]
[1642436400166,0.02092318,3220.4,3219.8,0.00397897]
[1642436400360,0.02092318,3220.4,3219.7,0.00454739]
[1642436400361,1.754827,3220.4,3219.7,0.00454739]
[1642436400561,1.754827,3220.4,3219.5,1.34762717]
[1642436400562,1.72126346,3220.4,3219.5,1.34762717]
[1642436400762,3.9562,3220.3,3219.5,1.34762717]
[1642436400962,5.67746346,3220.3,3219.7,0.77619]
[1642436401359,5.67746346,3220.3,3219.8,0.00397897]
[1642436401360,1.50561699,3220.1,3219.8,0.00397897]
[1642436401761,3.22688045,3220.1,3219.8,0.00397897]
[1642436402961,1.72126346,3220.1,3219.8,0.00397897]
[1642436403161,1.5332465,3220.1,3219.8,0.00397897]
[1642436404411,1.37652569,3220.8,3219.9,10.45]
[1642436404615,0.56259519,3220.8,3220.0,0.373]
[1642436404815,0.00113684,3220.7,3220.2,0.80737494]
[1642436405011,0.56373203,3220.7,3220.3,0.373]
[1642436405213,0.56373203,3220.7,3220.3,0.37413685]
[1642436405614,0.56259519,3220.7,3220.5,8.65]
[1642436405815,0.56259519,3220.7,3220.6,0.373]
[1642436406316,0.56259519,3221.0,3220.6,0.373]
[1642436406517,4.2094,3221.1,3220.6,0.373]
[1642436406716,0.00170527,3221.0,3220.6,1.14878]
[1642436407071,4.1521,3221.7,3221.0,0.02092842]
[1642436407258,4.1521,3221.7,3221.0,0.373]
[1642436407458,0.00170527,3221.3,3221.0,0.373]
[1642436407857,0.00113685,3221.2,3221.0,0.373]
[1642436408064,0.00113685,3221.2,3221.0,1.14878]
[1642436408262,1.3773474,3221.6,3221.0,1.14878]
[1642436408461,1.3773474,3221.6,3221.1,0.8636288]
[1642436408663,0.00284212,3221.5,3221.1,0.8636288]
[1642436409064,0.0022737,3221.4,3221.1,0.8636288]
[1642436409462,0.00341055,3221.6,3221.1,1.1636288]
[1642436409664,0.00341055,3221.6,3221.3,0.77559]
[1642436409862,8.5774,3222.8,3221.3,1.6392188]
[1642436409863,0.00284212,3221.5,3221.3,1.6392188]
[1642436410064,0.00284212,3221.5,3221.4,1.2366288]
[1642436410266,1.44391022,3222.1,3221.4,2.62863328]
[1642436410464,1.44391022,3222.1,3221.5,0.87435312]
[1642436410910,1.44391022,3222.1,3221.6,0.87435312]
[1642436411713,1.21998828,3221.5,3220.9,0.77591]
[1642436412114,0.0022737,3221.4,3220.9,1.65026312]
[1642436412312,0.0022737,3221.4,3221.0,0.58466713]
[1642436412513,1.21998828,3221.5,3221.0,0.58466713]
[1642436412514,0.00170527,3221.3,3221.0,0.58466713]
[1642436412914,0.00113685,3221.2,3221.0,0.58466713]
[1642436413319,0.0022737,3221.4,3221.0,0.58466713]
[1642436413715,0.00170527,3221.3,3221.0,0.58466713]
[1642436414117,0.00113685,3221.2,3221.0,0.58466713]
[1642436414582,0.0022737,3221.4,3221.0,0.88466713]
[1642436414871,0.00170527,3221.3,3221.0,1.20523893]
[1642436415073,0.00170527,3221.3,3221.0,0.58466713]
[1642436415276,0.00113685,3221.2,3221.0,0.58466713]
[1642436415674,1.48168458,3221.5,3221.0,0.58466713]
[1642436416075,0.0022737,3221.4,3221.0,0.58466713]
[1642436416475,0.00170527,3221.3,3221.0,0.58466713]
[1642436416679,0.00170527,3221.3,3221.0,0.55282086]
[1642436416680,0.01798297,3221.2,3221.0,0.55282086]
[1642436416877,6.95,3221.1,3220.8,0.55282086]
[1642436417679,14.85,3220.9,3220.8,0.55282086]
[1642436417886,14.85,3220.9,3218.7,0.1288]
[1642436417887,12.05,3220.7,3219.1,0.77633]
[1642436418182,1.3,3220.6,3219.4,0.0073895]
[1642436418425,1.7971681,3220.6,3219.4,0.0073895]
[1642436418619,0.4971681,3220.5,3219.4,0.0073895]
[1642436418820,1.36083334,3219.5,3218.9,1.13002889]
[1642436419022,1.85800144,3219.5,3218.9,1.43002889]
[1642436419221,0.4971681,3219.5,3219.0,0.00966319]
[1642436419621,0.4971681,3219.5,3219.0,0.78600319]
[1642436420023,0.4971681,3219.5,3219.1,0.00909477]
[1642436421034,0.4971681,3219.5,3218.8,0.01080004]
[1642436421222,0.4971681,3219.5,3218.4,0.01307374]
[1642436421624,1.3157821,3218.8,3218.4,0.01307374]
[1642436421826,1.41200524,3218.7,3218.4,0.01307374]
[1642436422056,2.09449091,3218.7,3218.1,0.01477901]
[1642436422260,2.09449091,3218.7,3217.9,0.01591585]
[1642436422463,0.01735324,3218.6,3217.9,0.01591585]
[1642436422661,0.79821221,3218.6,3217.6,0.01762112]
[1642436422959,2.88595629,3218.5,3217.6,0.01762112]
[1642436423161,1.44086535,3218.2,3217.8,0.77666]
[1642436423363,2.23907756,3218.2,3217.6,0.01762112]
[1642436423566,2.23907756,3218.2,3217.9,0.01591585]
[1642436423761,3.7178,3218.1,3217.4,0.01875797]
[1642436423961,2.89614759,3218.0,3217.0,0.02103166]
[1642436424162,3.6943598,3218.0,3217.0,0.02103166]
[1642436424361,3.6943598,3218.0,3217.0,0.09754311]
[1642436424761,1.50603838,3217.7,3217.1,0.02046324]
[1642436424962,2.30975304,3217.7,3217.1,0.02046324]
[1642436426009,0.80371466,3217.7,3217.1,0.02046324]
[1642436426215,0.80371466,3217.7,3217.1,1.57395324]
[1642436426410,0.79401852,3217.7,3217.1,2.91165844]
[1642436426610,0.79401852,3218.0,3217.2,0.01989482]
[1642436427209,1.46123844,3217.7,3217.4,0.77671]
[1642436427413,2.25525696,3217.7,3217.4,0.77671]
[1642436427612,2.25525696,3217.7,3217.5,0.01818955]
[1642436428414,0.79401852,3217.7,3217.5,0.01818955]
[1642436428615,1.01213891,3217.7,3217.5,0.01818955]
[1642436430269,1.01213891,3217.7,3217.5,1.57146955]
[1642436430464,0.75920066,3217.7,3217.5,2.020981]
[1642436430663,0.75920066,3217.7,3217.6,0.01762112]
[1642436430964,0.75920066,3218.0,3217.6,0.09413257]
[1642436431166,0.75920066,3218.0,3217.7,0.77652]
[1642436431370,0.75920066,3218.0,3217.9,2.68767234]
[1642436431764,0.75920066,3218.0,3217.9,2.70358819]
[1642436432365,0.53414199,3218.0,3217.9,1.56896585]
[1642436432767,0.53414199,3218.0,3217.9,0.01591585]
[1642436433165,0.53414199,3218.3,3217.6,0.01762112]
[1642436433621,1.61098199,3218.3,3217.6,0.01762112]
[1642436433819,0.53414199,3218.2,3217.2,0.01989482]
[1642436434023,0.53414199,3218.2,3216.9,0.00163574]
[1642436434219,0.00518534,3218.1,3216.6,0.00334101]
[1642436434419,0.55246755,3218.1,3216.6,0.00334101]
[1642436434620,0.77696,3217.8,3216.6,0.00334101]
[1642436434820,1.46486304,3217.4,3216.7,1.47214804]
[1642436435121,1.46486304,3217.4,3216.8,0.00220416]
[1642436435122,2.01214525,3217.4,3216.8,0.00220416]
[1642436435320,0.02377582,3217.2,3216.8,0.00220416]
[1642436435521,0.54728221,3217.2,3216.7,0.7769]
[1642436435921,0.54728221,3217.2,3216.8,0.00220416]
[1642436436420,0.32867546,3217.2,3216.8,1.52069197]
[1642436436624,0.32867546,3217.2,3216.9,1.55358]
[1642436436822,0.32867546,3217.2,3216.9,1.55521574]
[1642436437059,0.32867546,3217.2,3217.0,0.00106731]
[1642436437261,0.32867546,3217.6,3217.0,0.07757876]
[1642436437561,0.0017748,3217.5,3217.0,0.07757876]
[1642436437764,0.33045026,3217.5,3217.0,0.07757876]
[1642436437965,1.32349966,3217.4,3217.0,0.07757876]
[1642436438163,1.65217512,3217.4,3217.0,0.07757876]
[1642436438367,1.32349966,3217.4,3217.0,0.07757876]
[1642436438764,1.27349966,3217.4,3217.0,0.07757876]
[1642436439174,1.27349966,3217.4,3217.1,0.00170527]
[1642436439767,1.27349966,3217.4,3216.5,0.00511581]
[1642436440068,1.35171799,3216.6,3216.5,0.00511581]
[1642436440468,0.01901923,3216.5,3216.2,0.00682108]
[1642436440668,0.01901923,3216.5,3216.1,0.00738951]
[1642436440914,1.35171799,3216.6,3216.1,0.78444951]
[1642436441314,1.35171799,3216.6,3216.2,0.00682108]
[1642436441512,1.32684679,3217.2,3216.2,0.00682108]
[1642436442014,3.8505,3217.3,3216.4,0.77699]
[1642436442417,3.8505,3217.3,3216.5,0.20322726]
[1642436442619,3.8505,3217.3,3216.5,0.20482726]
[1642436442819,3.8505,3217.3,3216.8,1.13201317]
[1642436443221,1.15618443,3217.4,3216.9,0.00284212]
[1642436443620,1.15618443,3217.4,3216.7,0.00397896]
[1642436444021,1.15618443,3217.4,3216.6,0.00454739]
[1642436444423,1.24087188,3216.9,3216.6,0.00454739]
[1642436446268,0.00113685,3217.6,3216.6,0.00454739]
[1642436446470,0.00113685,3217.6,3216.9,0.77687]
[1642436446873,0.00113685,3217.6,3217.0,0.00227369]
[1642436447271,1.46606032,3217.2,3217.0,0.00227369]
[1642436448071,0.00113685,3217.6,3217.0,0.00227369]
[1642436449115,0.00113685,3217.6,3217.2,2.10532396]
[1642436449516,0.27497794,3218.5,3217.7,1.22624504]
[1642436449711,3.46118,3219.7,3217.7,1.22624504]
[1642436449712,1.30896074,3218.9,3217.7,1.22624504]
[1642436449912,0.00113684,3217.8,3217.7,1.52624504]
[1642436450412,0.00113684,3217.8,3217.7,0.7766]
[1642436450615,0.00113684,3217.8,3217.5,1.1561]
[1642436450813,0.00113684,3217.8,3217.5,1.5291]
[1642436451514,1.46385966,3217.7,3217.5,1.5291]
[1642436451813,1.46385966,3217.7,3217.5,0.373]
[1642436452261,1.46385966,3217.7,3217.5,0.673]
[1642436452561,0.00113684,3217.8,3217.5,0.673]
[1642436452760,0.00113684,3217.8,3217.6,0.77663]
[1642436453762,0.77668,3219.8,3217.5,0.673]
[1642436453763,0.69148695,3219.5,3217.7,18.65]
[1642436453965,6.2134162,3220.6,3218.6,0.01227786]
[1642436453966,3.6384,3220.1,3218.6,0.01227786]
[1642436454168,4.88319539,3220.6,3218.6,0.01227786]
[1642436454169,1.40370539,3220.6,3219.3,0.01239107]
[1642436454367,1.40370539,3220.6,3219.4,0.373]
[1642436454368,0.00738951,3220.0,3219.4,0.373]
[1642436454568,0.00738951,3220.0,3219.4,0.673]
[1642436454763,0.00682109,3219.9,3219.5,1.33498455]
[1642436454963,0.00682109,3219.9,3219.6,0.373]
[1642436455164,0.00625266,3219.8,3219.6,0.673]
[1642436455365,1.40370539,3220.6,3219.7,10.55]
[1642436455667,0.00397897,3220.5,3219.8,1.373]
[1642436455914,0.00397897,3220.5,3219.8,1.78490258]
[1642436456113,0.00341054,3220.4,3219.9,0.46555]
[1642436456315,0.00341054,3220.4,3220.0,0.373]
[1642436456517,1.51124541,3220.5,3220.1,2.32753]
[1642436456518,0.00284212,3220.3,3220.1,2.32753]
[1642436456717,0.00284212,3220.3,3220.0,0.373]
[1642436457019,0.0022737,3220.2,3220.0,0.373]
[1642436457223,0.0022737,3220.2,3220.0,0.673]
[1642436457419,3.98404927,3221.0,3220.0,0.673]
[1642436457420,3.98404927,3221.0,3220.1,8.6]
[1642436457621,1.29794838,3221.2,3220.0,0.673]
[1642436457622,1.29794838,3221.2,3220.4,0.77592]
[1642436457822,0.00397897,3220.8,3220.4,0.77592]
[1642436458120,0.00341054,3220.7,3220.5,1.1112776]
[1642436458326,1.92245,3222.1,3220.5,1.1112776]
[1642436458327,6.08960736,3222.4,3220.6,12.85]
[1642436458523,6.08960736,3222.4,3220.5,2.3525776]
[1642436458524,6.08960736,3222.4,3221.1,0.6205751]
[1642436458723,0.00397897,3221.4,3221.1,0.7965751]
[1642436459121,0.00341054,3221.3,3221.1,0.7965751]
[1642436459585,1.28250934,3221.4,3220.1,0.373]
[1642436459586,0.00284212,3221.2,3220.1,0.373]
[1642436459779,0.00284212,3221.2,3220.0,0.77614]
[1642436459972,1.58250934,3221.4,3220.2,0.00284211]
[1642436459973,0.01267335,3220.7,3220.2,0.00284211]
[1642436460176,1.52269713,3220.8,3220.1,0.00341054]
[1642436460376,1.52269713,3220.8,3219.4,4.58864]
[1642436460377,1.52269713,3220.8,3219.8,0.00511581]
[1642436460576,1.52269713,3220.8,3220.1,1.55208]
[1642436460577,1.11400379,3220.7,3220.1,1.55208]
[1642436460780,0.00170527,3221.0,3220.3,0.77607]
[1642436460980,0.00170527,3221.0,3220.4,0.373]
[1642436461177,6.54242782,3221.3,3220.4,0.37470527]
[1642436461178,0.00113685,3220.9,3220.4,0.37470527]
[1642436461379,0.00113685,3220.9,3220.5,0.00113684]
[1642436461578,0.00284212,3221.2,3220.6,0.373]
[1642436461778,0.00284212,3221.2,3220.7,1.29898868]
[1642436461977,1.17187407,3221.8,3220.7,1.29898868]
[1642436461978,0.0022737,3221.1,3220.8,0.373]
[1642436462480,0.00170527,3221.0,3220.8,0.373]
[1642436462878,0.00113685,3220.9,3220.8,0.373]
[1642436463080,0.00113685,3220.9,3220.8,1.92449]
[1642436464715,0.00113685,3220.9,3220.8,2.92449]
[1642436464917,7.843,3222.2,3220.9,10.35]
[1642436465122,3.9112,3222.2,3221.0,1.38998807]
[1642436465317,3.9112,3222.2,3221.0,0.373]
[1642436465318,0.00682108,3222.1,3221.0,0.373]
[1642436465517,0.00682108,3222.1,3221.4,1.12229087]
[1642436465518,1.46844489,3222.0,3221.4,1.12229087]
[1642436465717,2.67260639,3222.0,3221.1,1.55137]
[1642436465916,0.00568424,3221.9,3221.1,1.55137]
[1642436466319,0.00511581,3221.8,3221.1,1.55137]
[1642436466522,0.00511581,3221.8,3221.1,2.15137]
[1642436466719,0.13819997,3222.4,3221.2,10.15]
[1642436466720,0.09274736,3222.4,3221.2,10.15]
[1642436466924,7.7294,3222.6,3221.2,0.9035]
[1642436467171,0.00341054,3222.3,3221.3,1.3752737]
[1642436467372,0.00341054,3222.3,3221.3,0.9752737]
[1642436467571,7.7294,3222.6,3221.6,0.77572]
[1642436467572,0.00284212,3222.2,3221.6,0.77572]
[1642436467776,2.58159147,3222.0,3221.6,0.77572]
[1642436467972,2.58159147,3222.0,3221.4,0.00170527]
[1642436468172,2.58159147,3222.0,3221.4,0.37470527]
[1642436468173,0.00113685,3221.9,3221.4,0.37470527]
[1642436468576,0.00113685,3221.9,3221.5,0.00113685]
[1642436469178,0.04081504,3221.8,3220.9,0.00454739]
[1642436469380,0.04081504,3221.8,3220.7,0.00568424]
[1642436469579,9.00643128,3221.9,3220.0,0.0096632]
[1642436469778,1.20421193,3220.9,3220.0,0.0096632]
[1642436470180,1.22882259,3220.7,3220.1,1.27400297]
[1642436470582,3.6421,3221.4,3220.2,0.00852635]
[1642436470815,3.6421,3221.4,3220.2,0.13012635]
[1642436471018,3.6421,3221.4,3220.3,0.373]
[1642436471220,3.6421,3221.4,3220.3,0.38095793]
[1642436471418,3.6421,3221.4,3220.5,0.6982749]
[1642436471618,2.87838418,3221.4,3220.9,0.77587]
[1642436471822,3.70173685,3221.9,3220.9,0.77587]
[1642436472019,3.68523685,3221.9,3221.0,0.00397897]
[1642436472620,3.68523685,3221.9,3221.2,0.77572]
[1642436472823,1.3832808,3221.5,3221.2,0.77572]
[1642436473025,1.3832808,3221.5,3221.3,0.0022737]
[1642436473225,1.4758252,3221.6,3221.3,0.0022737]
[1642436473422,0.00113685,3221.9,3221.3,0.0022737]
[1642436474657,1.30796381,3221.7,3221.3,0.0022737]
[1642436475060,1.30796381,3221.7,3221.4,0.77579]
[1642436475461,1.30796381,3221.7,3221.5,0.00113685]
[1642436476062,1.30796381,3221.7,3221.3,0.0022737]
[1642436476262,1.30796381,3221.7,3221.2,0.00284212]
[1642436477070,0.00113685,3221.9,3221.2,0.00284212]
[1642436477269,0.00113685,3221.9,3221.4,0.7758]
[1642436477664,0.00113685,3221.9,3221.5,0.00113685]
[1642436478348,1.46217476,3221.7,3221.5,0.00113685]
[1642436478733,1.46217476,3221.7,3221.3,0.0022737]
[1642436479136,0.0194065,3221.6,3221.2,0.00284212]
[1642436479334,1.46217476,3221.7,3220.8,0.00511581]
[1642436479535,1.46217476,3221.7,3220.6,0.00625266]
[1642436479734,1.46217476,3221.7,3220.7,0.77597]
[1642436480135,1.46217476,3221.7,3220.8,1.50629495]
[1642436480538,1.46217476,3221.7,3220.9,0.00454739]
[1642436481139,1.46217476,3221.7,3221.0,0.7758]
[1642436481540,1.46217476,3221.7,3221.1,0.00341054]
[1642436482866,4.29210679,3221.7,3221.0,0.00397897]
[1642436483065,0.02297011,3221.6,3220.8,0.00511581]
[1642436483266,0.02297011,3221.6,3220.6,0.00625266]